Cogmind - Beta 15 @@@ ROGUE MODE // 2025.05.11 @ 17:00:05 Player: McSaucyNugget Result: Destroyed by 1X-E8W(R) with Subdweller Laser Performance ------------- Evolutions (0) 0 Regions Visited (2) 400 Robots Destroyed (20) 100 Value Destroyed (672) 672 Prototype IDs (1) 20 Alien Tech Used (0) 0 Bonus (0) 0 TOTAL SCORE: 1192 Bonus ------- None Cogmind --------- Core Integrity 0/250 Matter 161/300 Energy 110/200 System Corruption 1% Temperature Cool (6) Movement Rolling (135) Ox3 Location -10/Subcaves Parts ------- > --- POWER (1) -------- Subdweller Power Source > --- PROPULSION (2) --- Armored Wheel > --- UTILITY (2) ------ Large Storage Unit Makeshift Light Armor Plating > --- WEAPON (2) ------- Subdweller Shrapnel Launcher > --- INVENTORY (15) --- Ion Engine Armored Wheel Armored Wheel Armored Wheel Heat Sink Sensor Array Scrap Shield Improved EM Shotgun Improved EM Shotgun Subdweller Machine Gun Subdweller Machine Gun Light Cannon Mining Laser Peak State ------------ > --- POWER ------------ Ion Engine > --- PROPULSION ------- Armored Wheel > --- UTILITY ---------- Large Storage Unit Makeshift Light Armor Plating > --- WEAPON ----------- Barrage Gun Subdweller Shrapnel Launcher > --- INVENTORY -------- Ion Engine Subdweller Power Source Armored Wheel Armored Wheel Armored Wheel Heat Sink Sensor Array Scrap Shield Improved EM Shotgun Improved EM Shotgun Subdweller Machine Gun Subdweller Machine Gun Light Cannon Mining Laser [Rating: 15] Favorites ----------- Power Ion Engine Engine Ion Engine Propulsion Light Treads Treads Light Treads Wheel Armored Wheel Utility Large Storage Unit Device Sensor Array Storage Large Storage Unit Protection Makeshift Light Armor Plating Weapon Assault Rifle Energy Gun EM Pulse Gun Ballistic Gun Assault Rifle Ballistic Cannon Light Cannon Launcher Grenade Launcher Special Weapon Mining Laser Build | -11 -10 -10 ------- Run | Yrd Mat Sub Slots Evolved . | . . . Power . | . . . Propulsion . | . . . Utility . | . . . Weapon . | . . . Parts Attached 25 | 8 6 11 Power 4 | 1 1 2 Engine 4 | 1 1 2 Core . | . . . Reactor . | . . . Propulsion 7 | 4 . 3 Treads 2 | 2 . . Leg . | . . . Wheel 5 | 2 . 3 Hover . | . . . Flight . | . . . Utility 5 | 1 3 1 Device 2 | . 2 . Storage 2 | 1 1 . Processor . | . . . Hackware . | . . . Protection 1 | . . 1 Artifact . | . . . Weapon 9 | 2 2 5 Energy Gun 2 | 1 1 . Energy Cannon . | . . . Ballistic Gun 2 | 1 . 1 Ballistic Cannon 1 | . . 1 Launcher 3 | . 1 2 Special Weapon 1 | . . 1 Impact Weapon . | . . . Slashing Weapon . | . . . Piercing Weapon . | . . . Special Melee Weapon . | . . . Unidentified Prototypes 1 | . 1 . Parts Lost 9 | . 2 7 Power 3 | . 1 2 Propulsion 2 | . . 2 Utility . | . . . Weapon 4 | . 1 3 Highest Loss Streak 2 | . 2 2 To Critical Strikes 1 | . . 1 Average Backups 12 | 1 8 14 Power 2 | . 2 1 Propulsion 3 | . 2 4 Utility 2 | . 1 2 Weapon 4 | . 2 5 Tool/Special . | . . . Unused Backups 12 | . 2 10 Power 3 | . 1 2 Propulsion 3 | . . 3 Utility 1 | . . 1 Weapon 5 | . 1 4 Tool/Special . | . . . Average Slot Usage (%) 94 | . 95 94 Engine 13 | . 13 13 Treads 17 | . 28 13 Wheel 7 | . . 10 Device 10 | . 10 10 Storage 14 | . 14 14 Protection 2 | . . 3 Energy Gun 5 | . 14 1 Ballistic Gun 9 | . 13 7 Ballistic Cannon 3 | . . 5 Launcher 5 | . . 7 Special Weapon 3 | . . 5 Peak Build Rating 15 | 6 11 15 Average Rating 9 | 4 7 10 On Entrance 5 | . 6 11 Naked Turns . | . . . Heaviest Build 40 | 12 32 40 Greatest Support 40 | 40 40 40 Greatest Overweight (x) 3 | . . 3 Average Overweight (x) . | . . . Largest Inventory Capacity 15 | 8 15 15 Average Capacity 14 | 7 14 15 Most Carried 15 | 3 15 15 Average Carried 12 | 1 8 14 Final Capacity 15 | 8 15 15 Final Carried 15 | 3 15 14 Class Distribution -------------------- 100% | Mutant Dominant Class ---------------- Mutant | -10/Materials Mutant | -10/Subcaves Resources | -11 -10 -10 ----------- Run | Yrd Mat Sub Matter Collected 976 | 181 249 546 Remotely . | . . . Salvage Created 665 | . 319 346 Parts 39 | . 14 25 Haulers Intercepted . | . . . Recyclers Shooed 1 | . 1 . Parts Field Recycled . | . . . Retrieved Matter . | . . . Parts Self-Destructed 12 | . . 12 Prevented . | . . . Kills | -11 -10 -10 ------- Run | Yrd Mat Sub Combat Hostiles Destroyed 18 | . 6 12 Guns 6 | . 4 2 Cannons 5 | . . 5 AOE 7 | . 2 5 Classes Destroyed 5 | . 2 3 Worker 2 | . 2 . Swarmer 2 | . . 2 Grunt 6 | . 6 . Artisan 1 | . . 1 Subdweller 10 | . . 10 Best Kill Streak 2 | . 2 2 Combat Bots Only 2 | . 2 2 Max Kills in Single Turn 2 | . 2 1 Gunslinging . | . . . Exploded 1 | . 1 1 Melee . | . . . Uniques/NPCs Destroyed . | . . . Combat | -11 -10 -10 -------- Run | Yrd Mat Sub Hostile Shots Fired 97 | . 43 54 Missed 25 | . 12 13 Hits 72 | . 31 41 Projectile 72 | . 31 41 AOE 3 | . . 3 Critical Strikes 5 | . 3 2 Damage Taken 1444 | . 454 990 Core 268 | . 78 190 Absorbed by Shields . | . . . Core Remaining (%) 100 | 100 . . Volleys Fired 110 | . 45 65 Largest 2 | . 2 2 Hottest 100 | . 65 100 Shots Fired 182 | . 83 99 Gun 114 | . 83 31 Cannon 23 | . . 23 Launcher 16 | . . 16 Special 29 | . . 29 Kinetic 99 | . 38 61 Thermal 29 | . . 29 Explosive 8 | . . 8 Electromagnetic 46 | . 45 1 Robot Hit Streak 15 | . 15 11 Robot Miss Streak 2 | . 2 1 Penetration Max . | . . . Secondary Targets . | . . . Shots Hit Robots 73 | . 26 47 Core Hits 42 | . 20 22 Critical Kills . | . . . Critical Parts Destroyed . | . . . Critical Strikes 1 | . . 1 Blast 1 | . . 1 Melee Attacks . | . . . Impact . | . . . Slashing . | . . . Piercing . | . . . Sneak Attacks . | . . . Combat Hostiles . | . . . Follow-up Attacks . | . . . Damage Inflicted 2368 | . 705 1663 Guns 629 | . 386 243 Cannons 284 | . . 284 Explosions 1431 | . 319 1112 Melee . | . . . Ramming . | . . . Kinetic 1360 | . 156 1204 Thermal 125 | . 101 24 Explosive 411 | . . 411 Electromagnetic 472 | . 448 24 Impact . | . . . Slashing . | . . . Piercing . | . . . Highest Corruption 1 | . 1 1 Average Corruption 1 | . 1 1 Corruption Purged . | . . . Corruption Blocked . | . . . Effects 17 | . 2 15 Message Errors 3 | . 1 2 Matter Fused 7 | . . 7 Heat Flow Errors 1 | . . 1 Energy Discharges 2 | . 1 1 Data Loss (minor) 1 | . . 1 Misfires 2 | . . 2 Alerts 1 | . . 1 Overload Shots . | . . . Overflow Damage . | . . . Projectiles . | . . . Explosions . | . . . Melee . | . . . Knockbacks 3 | . . 3 Impact . | . . . Kinetic 3 | . . 3 Secondary . | . . . Self-Inflicted Damage 109 | . 29 80 Shots 5 | . 1 4 Rammed 1 | . . 1 Targets Rammed 1 | . . 1 Kicked . | . . . Crushed . | . . . Highest Temperature 172 | . 129 172 Average Temperature 55 | . 58 39 Received Heat Transfer 399 | . 273 126 Siege Activations . | . . . Martial Activations . | . . . Shielding Activations . | . . . Robots Disrupted . | . . . Combat Hostiles . | . . . Robots Corrupted . | . . . Combat Hostiles . | . . . Parts Fried . | . . . Impact Corruptions . | . . . Robots Melted . | . . . Combat Hostiles . | . . . Parts Melted . | . . . Heat Transferred 150 | . 100 50 Parts Sabotaged . | . . . Parts Stolen . | . . . Parts Stripped . | . . . Power Chain Reactions 2 | . 2 . Alert | -11 -10 -10 ------- Run | Yrd Mat Sub Maximum Alert Level . | . . . Low Security (%) 100 | 100 100 . Level 1 . | . . . Level 2 . | . . . Level 3 . | . . . Level 4 . | . . . Level 5 . | . . . High Security . | . . . Max Security . | . . . Peak Influence 89 | . 89 . Initial . | . . . Average 22 | . 25 . Influence Increases 282 | . 242 40 Destroy 0b10 Robot/C 160 | . 120 40 Destroy 0b10 Robot/NC 10 | . 10 . Destroy Leader 30 | . 30 . Successful Hack 18 | . 18 . Disable Machine 30 | . 30 . Destroy Structure 4 | . 4 . Lose Combat Pursuer 30 | . 30 . Influence Decreases 282 | . 193 89 Entered New Map 25 | . . 25 Time Decay 247 | . 183 64 Lost Part 10 | . 10 . Squads Dispatched 2 | . 2 . Investigation . | . . . Extermination . | . . . Reinforcement 2 | . 2 . Assault . | . . . Garrison . | . . . Intercept . | . . . Searches Triggered . | . . . Construction Impeded . | . . . Haulers Reinforced . | . . . Active Scanning Responses . | . . . Cargo Convoy Interrupts . | . . . Stealth | -11 -10 -10 --------- Run | Yrd Mat Sub Distress Signals . | . . . Communications Jammed . | . . . Distress Signals . | . . . Times Spotted 30 | . 16 14 Peak Tracking Total 5 | . 5 3 Tactical Retreats 1 | . 1 . Traps | -11 -10 -10 ------- Run | Yrd Mat Sub Traps Triggered 3 | . 3 . Indirectly 1 | . 1 . Trap Hack Attempts . | . . . Triggered . | . . . Disarmed . | . . . Reprogrammed . | . . . Reused . | . . . Traps Extracted . | . . . Installed . | . . . Triggered . | . . . Machines | -11 -10 -10 ---------- Run | Yrd Mat Sub Machines Disabled 2 | . 2 . Max in Single Turn 1 | . 1 . Machines Repaired . | . . . Machines Dismantled . | . . . Machines Sabotaged . | . . . Overloaded Fab Kills . | . . . Hacking | -11 -10 -10 --------- Run | Yrd Mat Sub Machines Accessed 5 | . 5 . Terminals 5 | . 5 . Fabricators . | . . . Repair Stations . | . . . Recycling Units . | . . . Scanalyzers . | . . . Garrison Access . | . . . Total Hacks 8 | . 8 . Successful 4 | . 4 . Failed 4 | . 4 . Catastrophic . | . . . Database Lockouts . | . . . Manual . | . . . Terminals 8 | . 8 . Fabricators . | . . . Repair Stations . | . . . Recycling Units . | . . . Scanalyzers . | . . . Garrison Access . | . . . Terminal Hacks 4 | . 4 . Alert Level 1 | . 1 . Locate Traps 1 | . 1 . Dispatch Records 1 | . 1 . Investigation Status 1 | . 1 . Fabricator Hacks . | . . . Repair Station Hacks . | . . . Recycling Unit Hacks . | . . . Scanalyzer . | . . . Garrison Access Hacks . | . . . Unauthorized Hacks . | . . . Terminals . | . . . Fabricators . | . . . Repair Stations . | . . . Recycling Units . | . . . Scanalyzers . | . . . Garrison Access . | . . . Data Cores Recovered . | . . . Used . | . . . Hacking Detections 3 | . 3 . Full Trace Events . | . . . Feedback Events . | . . . Feedback Blocked . | . . . Robot Schematics Acquired . | . . . Robots Built . | . . . Authchips . | . . . Time . | . . . Total Robot Build Rating . | . . . Part Schematics Acquired . | . . . Parts Built . | . . . Authchips . | . . . Time . | . . . Total Part Build Rating . | . . . Parts Repaired . | . . . Time . | . . . Parts Recycled . | . . . Recycled Matter . | . . . Retrieved Matter . | . . . Retrieved Components . | . . . Parts Scanalyzed . | . . . Part Schematics Acquired . | . . . Parts Damaged . | . . . Bothacking | -11 -10 -10 ------------ Run | Yrd Mat Sub Used RIF Installer . | . . . Robots Hacked . | . . . Non-combat . | . . . Combat . | . . . Robot Hacks Applied . | . . . Relay Couplers Released . | . . . Fabnet Peak Effective % . | . . . Robots Rewired . | . . . Allies Hacked . | . . . Hacks Repelled . | . . . Allies | -11 -10 -10 -------- Run | Yrd Mat Sub Total Allies . | . . . Largest Group . | . . . Highest-Rated Group . | . . . Highest-Rated Ally . | . . . Total Orders . | . . . Ally Attacks . | . . . Total Damage . | . . . Kills . | . . . Allies Corrupted . | . . . Allies Melted . | . . . Intel | -11 -10 -10 ------- Run | Yrd Mat Sub Active Infowar (turns) 1615 | . 407 1208 Sensors 1615 | . 407 1208 Robot Analysis Total . | . . . Derelict Logs Recovered 1 | . . 1 Drone Launches . | . . . Drone Recoveries . | . . . Exploration | -11 -10 -10 ------------- Run | Yrd Mat Sub Turns Passed 2357 | 88 685 1584 Spaces Moved 1352 | 51 321 980 Core 3 | 3 . . Treads 765 | 42 321 402 Legs . | . . . Wheels 584 | 6 . 578 Hover . | . . . Flight . | . . . Fastest Speed 50 | 50 160 100 Average Speed 140 | 144 160 133 Slowest Speed 240 | 160 160 240 Overloaded Moves . | . . . Propulsion Burnouts . | . . . Robots Hopped . | . . . Potential Cave-ins . | . . . Cave-ins Triggered . | . . . Exploration Rate (%) 42 | 6 62 59 Regions Visited 2 Branch Regions 1 Pre-discovered Areas 1 | . . 1 Known Exits Taken . | . . . Unknown Exits Taken 2 | 1 1 . Scrap Searched 4 | . . 4 Spaces Dug . | . . . Terrain Destroyed 79 | . 3 76 Melee . | . . . Projectile 1 | . . 1 AOE 78 | . 3 75 Terrain Rammed . | . . . Walls Destroyed . | . . . Machines Disabled . | . . . Actions | -11 -10 -10 --------- Run | Yrd Mat Sub Total 1565 | 61 411 1093 Wait 31 | . 18 13 Move 1350 | 50 320 980 Hop . | . . . Pick Up 24 | 3 14 7 Fast Attach 12 | 6 4 2 Attach 6 | . 2 4 Detach 4 | . 3 1 Swap 18 | 2 2 14 Drop 9 | . 3 6 Fire 110 | . 45 65 Melee . | . . . Ram . | . . . Kick . | . . . Crush 1 | . . 1 Escape Stasis . | . . . Rewire . | . . . Trap . | . . . Miscellaneous . | . . . Route ------- -11/Scrapyard -10/Materials (discovered 3 exits: [*Mat] / [*Min] / [*Sub]) -10/Subcaves (discovered 1 exit: Mat) History --------- Turn | Location | Event 14 | -11/Scrapyard | Discovered new exit (range 13) 89 | -11/Scrapyard | Entered Materials 305 | -10/Materials | Build established: Mutant 504 | -10/Materials | Discovered new exit (range 12) 666 | -10/Materials | Discovered new exit (range 14) 728 | -10/Materials | Discovered new exit (range 6) 774 | -10/Materials | Entered Subcaves 816 | -10/Subcaves | Identified exit to Materials 911 | -10/Subcaves | Learned location of Zion (-6) 911 | -10/Subcaves | Met a Zionite searching for "candidates" 1153 | -10/Subcaves | A swath of the cavern ceiling suddenly collapsed 1399 | -10/Subcaves | Core integrity fell below 50% 1848 | -10/Subcaves | Disturbed a concealed Subdweller 2055 | -10/Subcaves | Core integrity fell below 20% 2282 | -10/Subcaves | Disturbed a concealed Subdweller 2347 | -10/Subcaves | Ambushed by Subdwellers from Twisted Machinery 2358 | -10/Subcaves | Destroyed by 1X-E8W(R) with Subdweller Laser Last Messages --------------- Twisted Machinery. 02283_ SA-2K2(R): "SUBSUB!" 02294_ VFDYD#LMLJB2 WI VX%J9VX>P